[Event "CZE-ch U10 2020"]
[Site "Kouty nad Desnou"]
[Date "2020.03.07"]
[Round "1.1"]
[White "Policar, Martin"]
[Black "Bouska, Jiri"]
[Result "0-1"]
[ECO "B21"]
[WhiteElo "1264"]
[BlackElo "1643"]
[Annotator "NA RC"]
[PlyCount "64"]
[EventDate "2020.03.07"]
[EventCountry "CZE"]
[SourceTitle "playchess.com"]
[Source "ChessBase"]
[SourceQuality "1"]
[TimeControl "5400+30"]

1. e4 c5 2. d4 cxd4 3. c3 Nf6 4. Nf3 Nxe4 5. Qxd4 Nf6 6. Bg5 Nc6 7. Qf4 h6 8. Bxf6 exf6 9. Bc4 d5 10. Bd3 Bd6 11. Qe3+ Qe7 12. Qxe7+ Kxe7 13. O-O Be6 14. Re1 Ne5 15. Nxe5 fxe5 16. Nd2 e4 17. Bc2 f5 18. f3 Bc5+ 19. Kh1 e3 20. Nb3 Bb6 21. Nd4 Bxd4 22. cxd4 f4 23. Rac1 Rac8 24. Bd3 g5 25. h3 h5 26. Kh2 Rxc1 27. Rxc1 Rc8 28. Rd1 Kf6 29. Bh7 Bf5 30. Bxf5 Kxf5 31. a3 Rc2 32. b4 Ra2 0-1

[Event "CZE-ch U10 2020"]
[Site "Kouty nad Desnou"]
[Date "2020.03.07"]
[Round "1.3"]
[White "Komarek, Tobias"]
[Black "Stary, Vojtech"]
[Result "1-0"]
[ECO "C67"]
[WhiteElo "1235"]
[BlackElo "1559"]
[Annotator "NA RC"]
[PlyCount "111"]
[EventDate "2020.03.07"]
[EventCountry "CZE"]
[SourceTitle "playchess.com"]
[Source "ChessBase"]
[SourceQuality "1"]
[TimeControl "5400+30"]

1. e4 {[%emt 0:00:00]} e5 {[%emt 0:00:00]} 2. Nf3 {[%emt 0:00:00]} Nc6 {[%emt 0:00:00]} 3. Bb5 {[%emt 0:00:09]} Nf6 {[%emt 0:00:00]} 4. O-O {[%emt 0:00:24]} Nxe4 {[%emt 0:00:49]} 5. Re1 {[%emt 0:00:16]} Nd6 {[%emt 0:02:42]} 6. Bxc6 {[%emt 0:01:27]} dxc6 {[%emt 0:00:40]} 7. Rxe5+ {[%emt 0:00:48]} Be7 {[%emt 0:01:43]} 8. d4 {[%emt 0:01:16]} h6 {[%emt 0:10:32]} 9. Nc3 {[%emt 0:08:07]} Be6 {[%emt 0:06:50]} 10. Qe1 {[%emt 0:03:33]} Qd7 {[%emt 0:02:23]} 11. Bf4 {[%emt 0:01:30]} Nc4 {[%emt 0:18:02]} 12. Re2 {[%emt 0:03:10]} Bf6 {[%emt 0:16:32]} 13. Rd1 {[%emt 0:06:28]} O-O-O {[%emt 0:04:13]} 14. Ne4 {[%emt 0:01:54]} Be7 {[%emt 0:14:01]} 15. Nc5 {[%emt 0:02:00]} Bxc5 {[%emt 0:01:40]} 16. b3 {[%emt 0:03:02]} Nb6 {[%emt 0:08:13]} 17. Ne5 {[%emt 0:00:19]} Qe7 {[%emt 0:02:12]} 18. dxc5 {[%emt 0:01:22]} Qxc5 {[%emt 0:01:29]} 19. Nd3 {[%emt 0:05:06]} Qe7 {[%emt 0:00:55]} 20. Be3 {[%emt 0:02:50]} Nd5 {[%emt 0:01:08]} 21. Bc5 {[%emt 0:02:07]} Qg5 {[%emt 0:00:43]} 22. c4 {[%emt 0:04:48]} Nf4 {[%emt 0:02:02]} 23. Nxf4 {[%emt 0:01:12]} Qxf4 {[%emt 0:00:22]} 24. Be3 {[%emt 0:07:38]} Qf5 {[%emt 0:01:26]} 25. Rc1 {[%emt 0:01:30]} Qg6 {[%emt 0:00:56]} 26. Bf4 {[%emt 0:01:18]} Rhe8 {[%emt 0:00:45]} 27. Qa5 {[%emt 0:03:27]} Rd7 {[%emt 0:02:25]} 28. Qxa7 {[%emt 0:01:41]} Kd8 {[%emt 0:00:39]} 29. Rce1 {[%emt 0:09:09]} Ke7 {[%emt 0:00:34]} 30. Qxb7 {[%emt 0:01:53]} Kf8 {[%emt 0:00:15]} 31. Qxc6 {[%emt 0:01:18]} Ree7 {[%emt 0:00:32]} 32. Be3 {[%emt 0:02:37]} Kg8 {[%emt 0:00:12]} 33. Bc5 {[%emt 0:00:54]} Re8 {[%emt 0:00:53]} 34. h3 {[%emt 0:00:44]} Qf6 {[%emt 0:00:38]} 35. Qf3 {[%emt 0:01:11]} Qg6 {[%emt 0:00:24]} 36. Qg3 {[%emt 0:01:06]} Qh7 {[%emt 0:00:21]} 37. Be3 {[%emt 0:01:11]} Rde7 {[%emt 0:00:18]} 38. Bf4 {[%emt 0:01:06]} Rc8 {[%emt 0:00:40]} 39. Qf3 {[%emt 0:01:03]} Qg6 {[%emt 0:00:10]} 40. Qg3 {[%emt 0:00:33]} Qh7 {[%emt 0:00:06]} 41. Be3 {[%emt 0:01:03]} Rce8 {[%emt 0:00:28]} 42. Bc5 {[%emt 0:00:39]} Rd7 {[%emt 0:00:04]} 43. f4 {[%emt 0:00:38]} Qf5 {[%emt 0:00:21]} 44. Re5 {[%emt 0:00:39]} Qh7 {[%emt 0:00:16]} 45. f5 {[%emt 0:00:21]} Ra8 {[%emt 0:01:33]} 46. fxe6 {[%emt 0:00:54]} fxe6 {[%emt 0:00:11]} 47. Rxe6 {[%emt 0:00:26]} Qf5 {[%emt 0:00:24]} 48. Bf2 {[%emt 0:01:04]} Rxa2 {[%emt 0:00:31]} 49. Re8+ {[%emt 0:01:14]} Kh7 {[%emt 0:00:21]} 50. R8e5 {[%emt 0:00:58]} Qf6 {[%emt 0:00:19]} 51. Qf3 {[%emt 0:00:48]} Qd8 {[%emt 0:01:44]} 52. Qf5+ {[%emt 0:01:11]} g6 {[%emt 0:00:10]} 53. Qxd7+ {[%emt 0:00:44]} Qxd7 {[%emt 0:00:18]} 54. Re7+ {[%emt 0:00:06]} Qxe7 {[%emt 0:00:13]} 55. Rxe7+ {[%emt 0:00:08]} Kg8 {[%emt 0:00:12]} 56. Rxc7 1-0

[Event "CZE-ch U10 2020"]
[Site "Kouty nad Desnou"]
[Date "2020.03.07"]
[Round "1.4"]
[White "Delgerdalai, Bayarjavkhlan"]
[Black "Chernyy, Andrey"]
[Result "1-0"]
[ECO "C60"]
[WhiteElo "1553"]
[BlackElo "1208"]
[Annotator "NA RC"]
[PlyCount "87"]
[EventDate "2020.03.07"]
[EventCountry "CZE"]
[SourceTitle "playchess.com"]
[Source "ChessBase"]
[SourceQuality "1"]
[TimeControl "5400+30"]

1. e4 {[%emt 0:00:00]} e5 {[%emt 0:00:00]} 2. Nf3 {[%emt 0:00:00]} Nc6 {[%emt 0:00:00]} 3. Bb5 {[%emt 0:00:00]} Nge7 {[%emt 0:00:00]} 4. O-O {[%emt 0:00:11]} g6 {[%emt 0:00:22]} 5. c3 {[%emt 0:00:16]} Bg7 {[%emt 0:00:15]} 6. d4 {[%emt 0:00:17]} exd4 {[%emt 0:00:38]} 7. cxd4 {[%emt 0:00:13]} O-O {[%emt 0:01:14]} 8. Nc3 {[%emt 0:00:49]} d6 {[%emt 0:00:20]} 9. d5 {[%emt 0:01:58]} Ne5 {[%emt 0:00:34]} 10. h3 {[%emt 0:01:47]} Bd7 {[%emt 0:05:52]} 11. Nxe5 {[%emt 0:03:48]} Bxe5 {[%emt 0:00:49]} 12. Bxd7 {[%emt 0:03:28]} Qxd7 {[%emt 0:00:17]} 13. Bh6 {[%emt 0:00:19]} Bg7 {[%emt 0:00:46]} 14. Bxg7 {[%emt 0:02:05]} Kxg7 {[%emt 0:00:13]} 15. Qd4+ {[%emt 0:00:52]} Kg8 {[%emt 0:01:58]} 16. Qf6 {[%emt 0:05:00]} Rfd8 {[%emt 0:03:46]} 17. f4 {[%emt 0:01:37]} Nc8 {[%emt 0:04:19]} 18. Rf3 {[%emt 0:06:27]} Qe7 {[%emt 0:02:39]} 19. Qd4 {[%emt 0:00:54]} Nb6 {[%emt 0:03:58]} 20. Re1 {[%emt 0:05:27]} a6 {[%emt 0:05:14]} 21. Nd1 {[%emt 0:03:09]} Nd7 {[%emt 0:05:24]} 22. Nf2 {[%emt 0:01:01]} Re8 {[%emt 0:04:43]} 23. Ng4 {[%emt 0:01:18]} Qf8 {[%emt 0:01:16]} 24. e5 {[%emt 0:07:56]} Qg7 {[%emt 0:01:27]} 25. Qc3 {[%emt 0:02:59]} h5 {[%emt 0:02:43]} 26. Nf2 {[%emt 0:01:28]} Rac8 {[%emt 0:02:06]} 27. Rfe3 {[%emt 0:04:25]} dxe5 {[%emt 0:01:33]} 28. fxe5 {[%emt 0:00:32]} Nb6 {[%emt 0:01:03]} 29. Qb3 {[%emt 0:02:19]} Nd7 {[%emt 0:05:28]} 30. Qxb7 {[%emt 0:04:21]} Nc5 {[%emt 0:00:32]} 31. Qc6 {[%emt 0:02:31]} Qf8 {[%emt 0:00:31]} 32. Rc3 {[%emt 0:00:24]} Ne6 {[%emt 0:00:58]} 33. dxe6 {[%emt 0:00:28]} Rxe6 {[%emt 0:00:08]} 34. Qc5 {[%emt 0:00:23]} Qe8 {[%emt 0:00:17]} 35. Ne4 {[%emt 0:00:26]} Kg7 {[%emt 0:01:20]} 36. Nf6 {[%emt 0:03:04]} Qd8 {[%emt 0:00:25]} 37. Qd5 {[%emt 0:01:00]} Qh8 {[%emt 0:00:30]} 38. Rc6 {[%emt 0:00:51]} Re7 {[%emt 0:00:31]} 39. Qf3 {[%emt 0:00:34]} Qh6 {[%emt 0:00:38]} 40. Nd5 {[%emt 0:00:31]} Rd7 {[%emt 0:01:34]} 41. Qf6+ {[%emt 0:01:09]} Kf8 {[%emt 0:00:19]} 42. e6 {[%emt 0:00:18]} Re8 {[%emt 0:01:10]} 43. exd7 {[%emt 0:01:08]} Rxe1+ {[%emt 0:00:06]} 44. Kh2 {[%emt 0:00:10]} 1-0

[Event "CZE-ch U10 2020"]
[Site "Kouty nad Desnou"]
[Date "2020.03.07"]
[Round "1.5"]
[White "Milek, Tobias"]
[Black "Chon, Jeremy"]
[Result "0-1"]
[ECO "B35"]
[WhiteElo "1163"]
[BlackElo "1449"]
[Annotator "NA RC"]
[PlyCount "78"]
[EventDate "2020.03.07"]
[EventCountry "CZE"]
[SourceTitle "playchess.com"]
[Source "ChessBase"]
[SourceQuality "1"]
[TimeControl "5400+30"]

1. e4 {[%emt 0:00:00]} c5 {[%emt 0:00:00]} 2. Nf3 {[%emt 0:00:00]} g6 {[%emt 0:00:00]} 3. d4 {[%emt 0:00:00]} cxd4 {[%emt 0:00:00]} 4. Nxd4 {[%emt 0:00:00]} Bg7 {[%emt 0:00:00]} 5. Nc3 {[%emt 0:00:03]} Nc6 {[%emt 0:00:00]} 6. Be3 {[%emt 0:00:08]} Nf6 {[%emt 0:00:01]} 7. Bc4 {[%emt 0:00:12]} O-O {[%emt 0:00:06]} 8. Bb3 {[%emt 0:00:07]} e6 {[%emt 0:01:09]} 9. f3 {[%emt 0:00:12]} d5 {[%emt 0:02:52]} 10. Qd2 {[%emt 0:01:13]} Nxd4 {[%emt 0:11:07]} 11. Bxd4 {[%emt 0:01:28]} dxe4 {[%emt 0:01:21]} 12. O-O-O {[%emt 0:01:23]} exf3 {[%emt 0:01:35]} 13. gxf3 {[%emt 0:00:37]} a6 {[%emt 0:16:02]} 14. Bc5 {[%emt 0:01:43]} Qxd2+ {[%emt 0:00:22]} 15. Rxd2 {[%emt 0:00:08]} Re8 {[%emt 0:00:19]} 16. Rhd1 {[%emt 0:01:04]} Bh6 {[%emt 0:02:07]} 17. Bb6 {[%emt 0:02:27]} Bd7 {[%emt 0:07:46]} 18. Bd4 {[%emt 0:00:57]} e5 {[%emt 0:02:29]} 19. Bf2 {[%emt 0:01:27]} Bc6 {[%emt 0:01:25]} 20. Bh4 {[%emt 0:01:08]} Nh5 {[%emt 0:04:49]} 21. Kb1 {[%emt 0:00:55]} Bxd2 {[%emt 0:00:55]} 22. Rxd2 {[%emt 0:00:19]} Kg7 {[%emt 0:02:21]} 23. Rd6 {[%emt 0:02:25]} f6 {[%emt 0:10:38]} 24. Rd1 {[%emt 0:01:42]} g5 {[%emt 0:00:23]} 25. Bf2 {[%emt 0:00:43]} Rad8 {[%emt 0:01:27]} 26. Rf1 {[%emt 0:00:43]} Nf4 {[%emt 0:00:46]} 27. Bb6 {[%emt 0:00:17]} Rd7 {[%emt 0:00:54]} 28. Ne4 {[%emt 0:00:54]} h5 {[%emt 0:01:35]} 29. Nc5 {[%emt 0:01:46]} Rd2 {[%emt 0:02:59]} 30. h4 {[%emt 0:00:44]} gxh4 {[%emt 0:02:15]} 31. Rg1+ {[%emt 0:00:11]} Rg2 {[%emt 0:01:32]} 32. Rxg2+ {[%emt 0:00:07]} Nxg2 {[%emt 0:00:09]} 33. Ne6+ {[%emt 0:00:05]} Kg6 {[%emt 0:01:05]} 34. c3 {[%emt 0:01:56]} Bxf3 {[%emt 0:02:00]} 35. Bc2+ {[%emt 0:00:08]} e4 {[%emt 0:00:13]} 36. Nc7 {[%emt 0:00:56]} Re5 {[%emt 0:03:14]} 37. Bd4 {[%emt 0:00:21]} h3 {[%emt 0:00:31]} 38. Bg1 {[%emt 0:00:18]} f5 {[%emt 0:01:00]} 39. Bh2 {[%emt 0:00:13]} f4 {[%emt 0:00:44]} 0-1

[Event "CZE-ch U10 2020"]
[Site "Kouty nad Desnou"]
[Date "2020.03.07"]
[Round "1.6"]
[White "Svadlenka, Dominik"]
[Black "Melnikov, Ivan"]
[Result "1/2-1/2"]
[ECO "E90"]
[WhiteElo "1410"]
[BlackElo "1253"]
[Annotator "NA RC"]
[PlyCount "85"]
[EventDate "2020.03.07"]
[EventCountry "CZE"]
[SourceTitle "playchess.com"]
[Source "ChessBase"]
[SourceQuality "1"]
[TimeControl "5400+30"]

1. d4 {[%emt 0:00:00]} Nf6 {[%emt 0:00:00]} 2. c4 {[%emt 0:00:00]} g6 {[%emt 0:00:00]} 3. Nc3 {[%emt 0:00:00]} Bg7 {[%emt 0:00:31]} 4. e4 {[%emt 0:00:12]} d6 {[%emt 0:00:15]} 5. Nf3 {[%emt 0:00:17]} O-O {[%emt 0:00:30]} 6. h3 {[%emt 0:00:24]} e5 {[%emt 0:00:35]} 7. d5 {[%emt 0:00:52]} a5 {[%emt 0:01:32]} 8. Be3 {[%emt 0:00:28]} Na6 {[%emt 0:01:03]} 9. Be2 {[%emt 0:00:45]} Nc5 {[%emt 0:02:01]} 10. Nd2 {[%emt 0:00:26]} Ne8 {[%emt 0:00:27]} 11. O-O {[%emt 0:02:00]} f5 {[%emt 0:01:18]} 12. f3 {[%emt 0:00:41]} f4 {[%emt 0:00:09]} 13. Bf2 {[%emt 0:00:09]} g5 {[%emt 0:01:26]} 14. a3 {[%emt 0:00:54]} a4 {[%emt 0:01:47]} 15. Bxc5 {[%emt 0:00:24]} dxc5 {[%emt 0:00:07]} 16. Nxa4 {[%emt 0:00:15]} h5 {[%emt 0:00:24]} 17. Nxc5 {[%emt 0:00:37]} b6 {[%emt 0:01:10]} 18. Nd3 {[%emt 0:00:35]} Qf6 {[%emt 0:00:26]} 19. c5 {[%emt 0:01:14]} bxc5 {[%emt 0:01:02]} 20. Nc4 {[%emt 0:01:11]} Qg6 {[%emt 0:00:50]} 21. Ndxe5 {[%emt 0:00:59]} Qf6 {[%emt 0:01:57]} 22. Nc6 {[%emt 0:00:41]} Ba6 {[%emt 0:01:16]} 23. e5 Qf7 24. e6 {[%emt 0:03:38]} Qf6 {[%emt 0:03:26]} 25. e7 {[%emt 0:00:28]} Rf7 {[%emt 0:01:10]} 26. N4e5 {[%emt 0:01:02]} Rxe7 {[%emt 0:00:18]} 27. Nxe7+ {[%emt 0:00:14]} Qxe7 {[%emt 0:00:16]} 28. Bxa6 {[%emt 0:00:12]} Qxe5 {[%emt 0:00:30]} 29. Bc4 {[%emt 0:02:00]} Nd6 {[%emt 0:02:34]} 30. b3 {[%emt 0:01:06]} Qe3+ {[%emt 0:01:10]} 31. Kh2 {[%emt 0:02:59]} Bxa1 {[%emt 0:00:10]} 32. Qxa1 {[%emt 0:00:25]} Kf7 {[%emt 0:01:19]} 33. Qb1 {[%emt 0:01:42]} Kg7 {[%emt 0:01:10]} 34. Re1 {[%emt 0:02:12]} Qd4 {[%emt 0:01:37]} 35. Re7+ {[%emt 0:00:37]} Kf8 {[%emt 0:04:55]} 36. Qh7 {[%emt 0:05:18]} Rxa3 {[%emt 0:01:54]} 37. Rxc7 {[%emt 0:00:16]} Qf6 {[%emt 0:03:07]} 38. Rc6 {[%emt 0:01:29]} Ra1 {[%emt 0:00:52]} 39. Qd7 {[%emt 0:03:07]} g4 {[%emt 0:02:16]} 40. fxg4 {[%emt 0:01:23]} hxg4 {[%emt 0:01:42]} 41. Qxg4 {[%emt 0:00:39]} Qe5 {[%emt 0:00:36]} 42. Qe6 {[%emt 0:01:06]} Rh1+ {[%emt 0:00:51]} 43. Kxh1 1/2-1/2

[Event "CZE-ch U10 2020"]
[Site "Kouty nad Desnou"]
[Date "2020.03.07"]
[Round "1.7"]
[White "Srba, Daniel"]
[Black "Alidis, Myron"]
[Result "0-1"]
[ECO "B80"]
[WhiteElo "1145"]
[BlackElo "1395"]
[Annotator "NA RC"]
[PlyCount "75"]
[EventDate "2020.03.07"]
[EventCountry "CZE"]
[SourceTitle "playchess.com"]
[Source "ChessBase"]
[SourceQuality "1"]
[TimeControl "5400+30"]

1. e4 {[%emt 0:00:00]} c5 {[%emt 0:00:00]} 2. Nf3 {[%emt 0:00:22]} e6 {[%emt 0:00:00]} 3. d4 {[%emt 0:02:27]} cxd4 {[%emt 0:00:00]} 4. Nxd4 {[%emt 0:02:42]} Nf6 {[%emt 0:00:15]} 5. Nc3 {[%emt 0:05:14]} d6 {[%emt 0:00:07]} 6. Bg5 {[%emt 0:04:13]} Be7 {[%emt 0:00:13]} 7. Bb5+ {[%emt 0:04:25]} Bd7 {[%emt 0:00:20]} 8. Bxd7+ {[%emt 0:03:50]} Qxd7 {[%emt 0:00:18]} 9. O-O {[%emt 0:05:04]} O-O {[%emt 0:00:12]} 10. Re1 {[%emt 0:04:33]} Nc6 {[%emt 0:00:17]} 11. Nxc6 {[%emt 0:04:23]} Qxc6 {[%emt 0:00:12]} 12. Qd2 {[%emt 0:02:23]} Rfd8 {[%emt 0:01:27]} 13. Rad1 {[%emt 0:08:17]} d5 {[%emt 0:02:19]} 14. e5 {[%emt 0:04:13]} Ne4 {[%emt 0:00:07]} 15. Nxe4 {[%emt 0:06:14]} dxe4 {[%emt 0:00:09]} 16. Qc1 {[%emt 0:04:00]} Bxg5 {[%emt 0:00:23]} 17. Qxg5 {[%emt 0:00:08]} Rxd1 {[%emt 0:00:27]} 18. Rxd1 {[%emt 0:00:47]} h6 {[%emt 0:00:06]} 19. Qd2 {[%emt 0:05:18]} Rc8 {[%emt 0:00:24]} 20. c3 {[%emt 0:01:09]} Qa4 {[%emt 0:00:26]} 21. Qd7 {[%emt 0:03:56]} Rc6 {[%emt 0:00:35]} 22. a3 {[%emt 0:11:11]} Qc2 {[%emt 0:00:54]} 23. Qd2 {[%emt 0:01:42]} Qxd2 {[%emt 0:00:26]} 24. Rxd2 {[%emt 0:00:19]} Rc5 {[%emt 0:00:01]} 25. Re2 {[%emt 0:00:29]} Rxe5 {[%emt 0:00:08]} 26. f4 {[%emt 0:00:38]} Rb5 {[%emt 0:00:23]} 27. b4 {[%emt 0:00:24]} f5 {[%emt 0:00:10]} 28. h3 {[%emt 0:01:24]} h5 {[%emt 0:00:11]} 29. Rd2 {[%emt 0:00:57]} Rd5 {[%emt 0:00:13]} 30. Re2 {[%emt 0:00:56]} Rd3 {[%emt 0:00:10]} 31. Rc2 {[%emt 0:01:27]} Rd1+ {[%emt 0:00:13]} 32. Kf2 {[%emt 0:00:56]} Ra1 {[%emt 0:00:08]} 33. Rd2 {[%emt 0:02:05]} Rxa3 {[%emt 0:00:10]} 34. Rd8+ {[%emt 0:00:14]} Kh7 {[%emt 0:00:09]} 35. Rd7 {[%emt 0:01:20]} Rxc3 {[%emt 0:00:17]} 36. Rxb7 {[%emt 0:00:32]} Rc2+ {[%emt 0:00:11]} 37. Ke3 {[%emt 0:00:20]} Rxg2 {[%emt 0:00:10]} 38. Kd4 0-1

[Event "CZE-ch U10 2020"]
[Site "Kouty nad Desnou"]
[Date "2020.03.07"]
[Round "1.8"]
[White "Roubal, Matyas"]
[Black "Letal, Hynek"]
[Result "1-0"]
[ECO "B53"]
[WhiteElo "1380"]
[BlackElo "1127"]
[Annotator "NA RC"]
[PlyCount "83"]
[EventDate "2020.03.07"]
[EventCountry "CZE"]
[SourceTitle "playchess.com"]
[Source "ChessBase"]
[SourceQuality "1"]
[TimeControl "5400+30"]

1. e4 {[%emt 0:00:00]} c5 {[%emt 0:00:00]} 2. Nf3 {[%emt 0:00:00]} d6 {[%emt 0:00:00]} 3. d4 {[%emt 0:00:00]} cxd4 {[%emt 0:00:00]} 4. Qxd4 {[%emt 0:00:00]} Nc6 {[%emt 0:00:00]} 5. Bb5 {[%emt 0:00:00]} Bd7 {[%emt 0:00:17]} 6. Bxc6 {[%emt 0:00:00]} Bxc6 {[%emt 0:00:28]} 7. Nc3 {[%emt 0:00:07]} Nf6 {[%emt 0:02:05]} 8. Bg5 {[%emt 0:00:06]} Qb6 {[%emt 0:03:42]} 9. Bxf6 {[%emt 0:05:24]} exf6 {[%emt 0:01:40]} 10. Qxb6 {[%emt 0:00:30]} axb6 {[%emt 0:00:13]} 11. O-O {[%emt 0:00:59]} g6 {[%emt 0:06:05]} 12. Rad1 {[%emt 0:01:59]} b5 {[%emt 0:08:04]} 13. a3 {[%emt 0:02:48]} Rd8 {[%emt 0:02:54]} 14. Nd4 {[%emt 0:03:23]} Rc8 {[%emt 0:12:25]} 15. Rd2 {[%emt 0:05:56]} Be7 {[%emt 0:04:04]} 16. Ndxb5 {[%emt 0:02:05]} Bxb5 {[%emt 0:01:28]} 17. Nxb5 {[%emt 0:00:06]} Rc6 {[%emt 0:00:33]} 18. Rfd1 {[%emt 0:00:59]} Kd7 {[%emt 0:00:55]} 19. f4 {[%emt 0:01:48]} Rb6 {[%emt 0:00:45]} 20. c4 {[%emt 0:02:29]} Rc8 {[%emt 0:02:00]} 21. b3 {[%emt 0:00:25]} f5 {[%emt 0:02:38]} 22. e5 {[%emt 0:00:24]} Rcc6 {[%emt 0:03:28]} 23. exd6 {[%emt 0:00:41]} Bxd6 {[%emt 0:01:18]} 24. Rxd6+ {[%emt 0:00:33]} Rxd6 {[%emt 0:00:40]} 25. Rxd6+ {[%emt 0:00:06]} Rxd6 {[%emt 0:00:05]} 26. Nxd6 {[%emt 0:00:03]} Kxd6 {[%emt 0:00:06]} 27. Kf2 {[%emt 0:00:03]} Kc5 {[%emt 0:00:27]} 28. Ke3 {[%emt 0:00:07]} f6 {[%emt 0:00:28]} 29. Kd3 {[%emt 0:00:03]} g5 {[%emt 0:00:14]} 30. g3 {[%emt 0:00:03]} b5 {[%emt 0:01:13]} 31. b4+ {[%emt 0:00:09]} Kc6 {[%emt 0:00:09]} 32. cxb5+ {[%emt 0:00:05]} Kxb5 {[%emt 0:00:17]} 33. Kd4 {[%emt 0:00:05]} Kc6 {[%emt 0:00:28]} 34. a4 {[%emt 0:00:03]} Kd6 {[%emt 0:00:15]} 35. b5 {[%emt 0:00:04]} Kc7 {[%emt 0:00:13]} 36. Kc5 {[%emt 0:00:08]} Kb7 {[%emt 0:00:07]} 37. b6 {[%emt 0:00:04]} Kc8 {[%emt 0:00:05]} 38. Kc6 {[%emt 0:00:04]} Kb8 {[%emt 0:00:05]} 39. b7 {[%emt 0:00:04]} Ka7 {[%emt 0:00:10]} 40. Kc7 {[%emt 0:00:04]} Ka6 {[%emt 0:00:05]} 41. b8=Q {[%emt 0:00:06]} Ka5 {[%emt 0:00:06]} 42. Qb5# 1-0

[Event "CZE-ch U10 2020"]
[Site "Kouty nad Desnou"]
[Date "2020.03.07"]
[Round "1.9"]
[White "Soucek, Andrej"]
[Black "Gorej, Vojtech"]
[Result "0-1"]
[ECO "C01"]
[WhiteElo "1043"]
[BlackElo "1360"]
[Annotator "NA RC"]
[PlyCount "114"]
[EventDate "2020.03.07"]
[EventCountry "CZE"]
[SourceTitle "playchess.com"]
[Source "ChessBase"]
[SourceQuality "1"]
[TimeControl "5400+30"]

1. e4 {[%emt 0:00:00]} e6 {[%emt 0:00:00]} 2. d4 {[%emt 0:00:00]} d5 {[%emt 0:00:11]} 3. exd5 {[%emt 0:00:35]} exd5 {[%emt 0:00:47]} 4. Bd3 Bd6 {[%emt 0:00:55]} 5. Ne2 {[%emt 0:01:06]} Nf6 {[%emt 0:01:09]} 6. O-O {[%emt 0:01:30]} O-O {[%emt 0:01:16]} 7. Bf4 {[%emt 0:00:49]} Nc6 {[%emt 0:02:13]} 8. c3 {[%emt 0:01:33]} Ne7 {[%emt 0:01:16]} 9. Re1 {[%emt 0:02:18]} Bf5 {[%emt 0:04:04]} 10. Qc2 {[%emt 0:04:21]} Bxd3 {[%emt 0:01:21]} 11. Qxd3 {[%emt 0:00:18]} Ng6 {[%emt 0:01:20]} 12. Bxd6 {[%emt 0:01:01]} Qxd6 {[%emt 0:00:17]} 13. Nd2 {[%emt 0:03:16]} Ng4 {[%emt 0:04:29]} 14. Qg3 {[%emt 0:02:07]} Qxg3 {[%emt 0:00:46]} 15. Nxg3 {[%emt 0:00:27]} Rfe8 {[%emt 0:01:18]} 16. h3 {[%emt 0:05:37]} Nf6 {[%emt 0:00:25]} 17. Re3 {[%emt 0:01:20]} Rxe3 {[%emt 0:01:17]} 18. fxe3 {[%emt 0:01:04]} Re8 {[%emt 0:00:09]} 19. Kf2 {[%emt 0:00:36]} Kf8 {[%emt 0:01:52]} 20. Nf5 {[%emt 0:02:31]} Ne4+ {[%emt 0:01:33]} 21. Nxe4 {[%emt 0:00:29]} dxe4 {[%emt 0:00:55]} 22. h4 {[%emt 0:00:46]} Re6 {[%emt 0:00:41]} 23. h5 {[%emt 0:00:25]} Rf6 {[%emt 0:00:41]} 24. hxg6 {[%emt 0:02:58]} Rxf5+ {[%emt 0:00:08]} 25. Ke2 {[%emt 0:01:48]} fxg6 {[%emt 0:02:06]} 26. Rh1 {[%emt 0:01:22]} h5 {[%emt 0:06:10]} 27. Rh4 {[%emt 0:02:14]} Ra5 {[%emt 0:01:57]} 28. a3 {[%emt 0:01:30]} Rg5 {[%emt 0:00:10]} 29. Kf2 {[%emt 0:00:15]} Rb5 {[%emt 0:01:45]} 30. b4 {[%emt 0:00:29]} Rb6 {[%emt 0:01:15]} 31. Rxe4 {[%emt 0:00:32]} Rc6 {[%emt 0:00:29]} 32. Rf4+ {[%emt 0:00:50]} Kg8 {[%emt 0:00:34]} 33. e4 {[%emt 0:00:28]} Rxc3 {[%emt 0:00:15]} 34. Rf3 {[%emt 0:00:42]} Rxf3+ {[%emt 0:02:42]} 35. Kxf3 {[%emt 0:00:13]} g5 {[%emt 0:00:35]} 36. e5 {[%emt 0:00:16]} Kf7 {[%emt 0:04:55]} 37. d5 {[%emt 0:00:33]} g6 {[%emt 0:02:30]} 38. Ke4 {[%emt 0:02:37]} c6 {[%emt 0:02:04]} 39. a4 {[%emt 0:02:35]} cxd5+ {[%emt 0:00:18]} 40. Kxd5 {[%emt 0:00:24]} Ke7 {[%emt 0:00:07]} 41. a5 {[%emt 0:01:28]} a6 {[%emt 0:02:02]} 42. Kc5 {[%emt 0:00:33]} g4 {[%emt 0:00:05]} 43. Kb6 {[%emt 0:00:29]} h4 {[%emt 0:00:10]} 44. Kxb7 {[%emt 0:00:10]} h3 {[%emt 0:00:04]} 45. gxh3 {[%emt 0:00:24]} gxh3 {[%emt 0:00:08]} 46. Kxa6 {[%emt 0:00:04]} h2 {[%emt 0:00:06]} 47. b5 {[%emt 0:00:17]} h1=Q {[%emt 0:00:13]} 48. b6 {[%emt 0:00:42]} Qa8+ {[%emt 0:00:22]} 49. Kb5 {[%emt 0:00:12]} Kd7 {[%emt 0:00:20]} 50. a6 {[%emt 0:00:31]} Qc6+ {[%emt 0:00:14]} 51. Ka5 {[%emt 0:00:30]} Qc5+ {[%emt 0:00:04]} 52. Ka4 {[%emt 0:00:22]} Qxb6 {[%emt 0:00:06]} 53. Ka3 {[%emt 0:00:42]} Qxa6+ {[%emt 0:00:16]} 54. Kb4 {[%emt 0:00:18]} Ke6 {[%emt 0:00:33]} 55. Kc5 {[%emt 0:00:15]} Kxe5 {[%emt 0:00:09]} 56. Kb4 {[%emt 0:00:14]} Kd4 {[%emt 0:00:06]} 57. Kb3 {[%emt 0:00:11]} Ke5 0-1